fUST/lending_fUST_20250624
["ID","MTS","AMOUNT","RATE_DAILY","PERIOD"]
[367270732,1750723840739,-500.0,0.00019299,2]
[367270733,1750723840749,-500.0,0.00019299,2]
[367270734,1750723840759,-365.48523123,0.00019299,2]
[367270735,1750723840768,-460.0,0.00019299,2]
[367270736,1750723840778,-151.0,0.00019299,2]
[367270737,1750723840787,-500.0,0.00019299,2]
[367270738,1750723840797,-500.0,0.00019299,2]
[367270739,1750723840807,-500.0,0.00019299,2]
[367270740,1750723840816,-460.0,0.00019299,2]
[367270741,1750723840825,-151.0,0.00019299,2]
[367270742,1750723840834,-2118.0,0.00019299,2]
[367270743,1750723840843,-151.0,0.00019299,2]
[367270744,1750723840853,-151.0,0.00019299,2]
[367270745,1750723840863,-330.0,0.00019299,2]
[367270746,1750723840874,-460.0,0.00019299,2]
[367270747,1750723840884,-460.0,0.00019299,2]
[367270748,1750723840893,-1750.26,0.00019299,2]
[367270749,1750723840903,-1226.69,0.00019299,2]
[367270750,1750723840912,-5614.3,0.00019299,2]
[367270751,1750723840921,-706.42,0.00019299,2]
[367270752,1750723840930,-3235.04,0.00019299,2]
[367270753,1750723840940,-518.57,0.00019299,2]
[367270754,1750723840949,-971.93,0.00019299,2]
[367270755,1750723840958,-460.0,0.00019299,2]
[367270756,1750723840967,-2158.52,0.00019299,2]
[367270757,1750723840977,-460.0,0.00019299,2]
[367270758,1750723840987,-460.0,0.000193,2]
[367270759,1750723840998,-460.0,0.000193,2]
[367270760,1750723841008,-460.0,0.000193,2]
[367270761,1750723841020,-460.0,0.000193,2]
[367270762,1750723841030,-473.71,0.000193,2]
[367270763,1750723841039,-460.0,0.000193,2]
[367270764,1750723841048,-460.0,0.000193,2]
[367270765,1750723841059,-460.0,0.000193,2]
[367270766,1750723841068,-460.0,0.000193,2]
[367270767,1750723841078,-460.0,0.000193,2]
[367270769,1750723841087,-485.2,0.000193,2]
[367270770,1750723841097,-460.0,0.000193,2]
[367270771,1750723841106,-578.45405921,0.000193,2]
[367270772,1750723841115,-460.0,0.000193,2]
[367270773,1750723841125,-444.90599264,0.000193,2]
[367270774,1750723841136,-460.0,0.000193,2]
[367270775,1750723841146,-205.13825141,0.000193,2]
[367270776,1750723841155,-460.0,0.000193,2]
[367270777,1750723841164,-407.9516865,0.000193,2]
[367270778,1750723841174,-460.0,0.000193,2]
[367270779,1750723841183,-460.0,0.000193,2]
[367270780,1750723841193,-500.0,0.000193,2]
[367270781,1750723841202,-461.33,0.000193,2]
[367270782,1750723841211,-151.373561,0.000193,2]
[367270783,1750723841220,-151.0,0.000193,2]
[367270784,1750723841229,-151.0,0.000193,2]
[367270785,1750723841239,-151.0,0.000193,2]
[367270786,1750723841248,-365.04500709,0.000193,2]
[367270787,1750723841258,-300.28477608,0.000193,2]
[367270788,1750723841269,-460.0,0.000193,2]
[367270789,1750723841278,-460.0,0.000193,2]
[367270790,1750723841288,-247.50446273,0.000193,2]
[367270791,1750723841299,-460.0,0.000193,2]
[367270792,1750723841310,-460.0,0.000193,2]
[367270793,1750723841319,-460.0,0.000193,2]
[367270794,1750723841328,-460.0,0.000193,2]
[367270795,1750723841339,-460.0,0.000193,2]
[367270796,1750723841350,-460.0,0.000193,2]
[367270797,1750723841359,-313.91577373,0.000193,2]
[367270798,1750723841370,-460.0,0.000193,2]
[367270799,1750723841379,-440.43125307,0.000193,2]
[367270800,1750723841389,-460.0,0.000193,2]
[367270801,1750723841400,-460.0,0.000193,2]
[367270802,1750723841413,-405.95017054,0.000193,2]
[367270803,1750723841423,-460.0,0.000193,2]
[367270804,1750723841433,-460.0,0.000193,2]
[367270805,1750723841443,-463.14,0.000193,2]
[367270806,1750723841453,-460.0,0.000193,2]
[367270807,1750723841463,-460.0,0.000193,2]
[367270808,1750723841473,-298.0922091,0.000193,2]
[367270809,1750723841483,-460.0,0.000193,2]
[367270810,1750723841492,-460.0,0.000193,2]
[367270811,1750723841503,-460.0,0.000193,2]
[367270812,1750723841513,-402.33796434,0.000193,2]
[367270813,1750723841522,-151.0,0.000193,2]
[367270814,1750723841533,-153.51658329,0.000193,2]
[367270815,1750723841543,-151.0,0.000193,2]
[367270816,1750723841554,-152.31220632,0.000193,2]
[367270817,1750723841564,-151.0,0.000193,2]
[367270818,1750723841573,-151.0,0.000193,2]
[367270819,1750723841583,-151.0,0.000193,2]
[367270820,1750723841593,-485.78,0.000193,2]
[367270821,1750723841603,-460.0,0.000193,2]
[367270822,1750723841613,-513.86,0.000193,2]
[367270823,1750723841622,-460.0,0.000193,2]
[367270824,1750723841631,-460.0,0.000193,2]
[367270825,1750723841641,-210.42232648,0.000193,2]
[367270826,1750723841650,-460.0,0.000193,2]
[367270827,1750723841659,-355.09252738,0.000193,2]
[367270828,1750723841669,-400.0,0.000193,2]
[367270829,1750723841678,-460.0,0.000193,2]
[367270830,1750723841687,-460.0,0.000193,2]
[367270831,1750723841696,-440.0,0.000193,2]
[367270832,1750723841706,-460.0,0.000193,2]
[367270833,1750723841715,-434.85778017,0.000193,2]
[367270834,1750723841725,-460.0,0.000193,2]
[367270835,1750723841734,-460.0,0.000193,2]
[367270836,1750723841743,-460.0,0.000193,2]
[367270837,1750723841753,-460.0,0.000193,2]
[367270838,1750723841763,-460.0,0.000193,2]
[367270839,1750723841772,-793.17,0.000193,2]
[367270840,1750723841781,-460.0,0.000193,2]
[367270841,1750723841791,-460.0,0.000193,2]
[367270842,1750723841800,-460.0,0.000193,2]
[367270843,1750723841809,-460.0,0.000193,2]
[367270844,1750723841819,-460.0,0.000193,2]
[367270845,1750723841829,-460.0,0.00019301,2]
[367270846,1750723841838,-460.0,0.00019301,2]
[367270847,1750723841847,-460.0,0.00019301,2]
[367270848,1750723841857,-460.0,0.00019301,2]
[367270849,1750723841866,-460.0,0.00019301,2]
[367270850,1750723841876,-460.0,0.00019301,2]
[367270851,1750723841885,-460.0,0.00019301,2]
[367270852,1750723841895,-255.0,0.0001931,2]
[367270853,1750723841904,-153.34192971,0.00019315,2]
[367270854,1750723841913,-151.0,0.00019326,2]
[367270855,1750723841923,-151.0,0.00019327,2]
[367270856,1750723841932,-151.0,0.00019327,2]
[367270857,1750723841941,-151.0,0.00019327,2]
[367270858,1750723841951,-198.0,0.00019355,2]
[367270859,1750723841960,-441.37149877,0.00019523,2]
[367270860,1750723841970,-190.56,0.00019561,3]
[367270861,1750723841979,-571.69,0.00019561,3]
[367270862,1750723841989,-571.67,0.00019562,3]
[367270863,1750723841998,-460.0,0.00019569,2]
[367270864,1750723842008,-413.78,0.00019569,2]
[367270865,1750723842017,-1738.13,0.00019569,2]
[367270866,1750723842027,-460.0,0.00019569,2]
[367270867,1750723842036,-460.0,0.00019569,2]
[367270868,1750723842046,-460.0,0.00019569,2]
[367270869,1750723842055,-478.38,0.0001957,2]
[367270870,1750723842065,-460.0,0.0001957,2]
[367270871,1750723842075,-460.0,0.0001957,2]
[367270872,1750723842084,-460.0,0.0001957,2]
[367270873,1750723842093,-460.0,0.0001957,2]
[367270874,1750723842102,-460.0,0.0001957,2]
[367270875,1750723842111,-1947.57,0.0001957,2]
[367270876,1750723842120,-2262.43,0.0001957,2]
[367270877,1750723842130,-506.05,0.0001957,2]
[367270878,1750723842139,-1275.82,0.0001957,2]
[367270879,1750723842148,-460.0,0.0001957,2]
[367270880,1750723842158,-1757.27,0.0001957,2]
[367270881,1750723842167,-1401.59,0.0001957,2]
[367270882,1750723842176,-460.0,0.0001957,2]
[367270883,1750723842185,-755.91,0.0001957,2]
[367270884,1750723842194,-504.92,0.0001957,2]
[367270885,1750723842204,-748.41,0.0001957,2]
[367270886,1750723842213,-2742.61,0.0001957,2]
[367270887,1750723842222,-580.87,0.0001957,2]
[367270888,1750723842231,-216.96,0.0001957,2]
[367270889,1750723842240,-460.0,0.0001957,2]
[367270890,1750723842250,-460.0,0.00019571,2]
[367270891,1750723842259,-460.0,0.00019571,2]
[367270892,1750723842269,-575.05814559,0.00019571,2]
[367270893,1750723842278,-460.0,0.00019571,2]
[367270894,1750723842288,-460.0,0.00019571,2]
[367270895,1750723842297,-574.54,0.00019571,2]
[367270896,1750723842307,-460.0,0.00019571,2]
[367270897,1750723842316,-500.56,0.00019571,2]
[367270898,1750723842325,-460.0,0.00019571,2]
[367270899,1750723842335,-460.0,0.00019571,2]
[367270900,1750723842344,-460.0,0.00019571,2]
[367270901,1750723842353,-460.0,0.00019571,2]
[367270902,1750723842363,-460.0,0.00019571,2]
[367270903,1750723842376,-460.0,0.00019571,2]
[367270904,1750723842386,-460.0,0.00019571,2]
[367270905,1750723842395,-521.47,0.00019571,2]
[367270906,1750723842409,-460.0,0.00019571,2]
[367270907,1750723842420,-460.0,0.00019571,2]
[367270908,1750723842430,-460.0,0.00019571,2]
[367270909,1750723842440,-460.0,0.00019571,2]
[367270910,1750723842451,-460.0,0.00019571,2]
[367270911,1750723842460,-460.0,0.00019571,2]
[367270912,1750723842469,-460.0,0.00019571,2]
[367270913,1750723842480,-460.0,0.00019571,2]
[367270914,1750723842489,-340.38774681,0.00019571,2]
[367270915,1750723842499,-460.0,0.00019571,2]
[367270916,1750723842509,-460.0,0.00019571,2]
[367270917,1750723842518,-460.0,0.00019571,2]
[367270918,1750723842528,-460.0,0.00019571,2]
[367270919,1750723842538,-770.93,0.00019571,2]
[367270920,1750723842547,-532.98,0.00019571,2]
[367270921,1750723842557,-460.0,0.00019571,2]
[367270922,1750723842566,-545.41,0.00019571,2]
[367270923,1750723842575,-563.44,0.00019571,2]
[367270924,1750723842585,-467.69,0.00019571,2]
[367270925,1750723842595,-460.0,0.00019571,2]
[367270926,1750723842606,-460.0,0.00019571,2]
[367270927,1750723842623,-325.8071335,0.00019571,2]
[367270928,1750723842641,-460.0,0.00019571,2]
[367270929,1750723842651,-460.0,0.00019571,2]
[367270930,1750723842661,-460.0,0.00019571,2]
[367270931,1750723842670,-460.0,0.00019571,2]
[367270932,1750723842680,-460.0,0.00019571,2]
[367270933,1750723842689,-460.0,0.00019571,2]
[367270934,1750723842699,-460.0,0.00019571,2]
[367270935,1750723842708,-460.0,0.00019571,2]
[367270936,1750723842717,-460.0,0.00019571,2]
[367270937,1750723842726,-460.0,0.00019571,2]
[367270938,1750723842735,-460.0,0.00019571,2]
[367270939,1750723842745,-540.67,0.00019571,2]
[367270940,1750723842755,-460.0,0.00019571,2]
[367270941,1750723842764,-460.0,0.00019571,2]
[367270942,1750723842773,-460.0,0.00019571,2]
[367270943,1750723842783,-460.0,0.00019571,2]
[367270944,1750723842792,-460.0,0.00019571,2]
[367270945,1750723842802,-460.0,0.00019571,2]
[367270946,1750723842811,-460.0,0.00019571,2]
[367270947,1750723842820,-460.0,0.00019571,2]
[367270948,1750723842830,-460.0,0.00019571,2]
[367270949,1750723842839,-460.0,0.00019571,2]
[367270950,1750723842848,-545.2,0.00019571,2]
[367270951,1750723842857,-460.0,0.00019571,2]
[367270952,1750723842867,-460.0,0.00019571,2]
[367270953,1750723842877,-460.0,0.00019571,2]
[367270954,1750723842886,-460.0,0.00019571,2]
[367270955,1750723842896,-460.0,0.00019571,2]
[367270956,1750723842905,-715.93,0.00019571,2]
[367270957,1750723842915,-695.58,0.00019571,2]
[367270958,1750723842924,-460.0,0.00019571,2]
[367270959,1750723842933,-495.18350618,0.00019571,2]
[367270960,1750723842943,-460.0,0.00019571,2]
[367270961,1750723842952,-460.0,0.00019571,2]
[367270962,1750723842961,-460.0,0.00019572,2]
[367270963,1750723842971,-460.0,0.00019572,2]
[367270964,1750723842980,-460.0,0.00019572,2]
[367270965,1750723842989,-561.93,0.00019572,2]
[367270966,1750723842998,-725.17,0.00019572,2]
[367270967,1750723843007,-460.0,0.00019572,2]
[367270968,1750723843016,-718.39,0.00019572,2]
[367270969,1750723843026,-681.74,0.00019572,2]
[367270970,1750723843035,-460.0,0.00019573,2]
[367270971,1750723843044,-460.0,0.00019573,2]
[367270972,1750723843053,-2243.65,0.00019573,2]
[367270973,1750723843063,-652.11,0.00019573,2]
[367270974,1750723843073,-532.82,0.00019573,2]
[367270975,1750723843083,-460.0,0.00019573,2]
[367270976,1750723843092,-460.0,0.00019573,2]
[367270977,1750723843101,-2118.0,0.00019573,2]
[367270978,1750723843111,-460.0,0.00019573,2]
[367270979,1750723843122,-460.0,0.00019573,2]
[367270980,1750723843131,-1750.26,0.00019573,2]
[367270981,1750723843141,-1226.69,0.00019573,2]
[367270982,1750723843151,-5614.3,0.00019573,2]
[367270983,1750723843160,-706.42,0.00019573,2]
[367270984,1750723843170,-3235.04,0.00019573,2]
[367270985,1750723843179,-518.57,0.00019573,2]
[367270986,1750723843300,-971.93,0.00019573,2]
[367270987,1750723843310,-460.0,0.00019573,2]
[367270988,1750723843319,-2158.52,0.00019573,2]
[367270989,1750723843328,-460.0,0.00019573,2]
[367270990,1750723843339,-460.0,0.00019574,2]
[367270991,1750723843348,-460.0,0.00019574,2]
[367270992,1750723843359,-460.0,0.00019574,2]
[367270993,1750723843368,-473.71,0.00019574,2]
[367270994,1750723843379,-460.0,0.00019574,2]
[367270995,1750723843388,-598.62,0.00019574,2]
[367270996,1750723843397,-460.0,0.00019574,2]
[367270997,1750723843411,-460.0,0.00019574,2]
[367270998,1750723843420,-460.0,0.00019574,2]
[367270999,1750723843430,-460.0,0.00019574,2]
[367271000,1750723843440,-460.0,0.00019574,2]
[367271001,1750723843450,-460.0,0.00019574,2]
[367271002,1750723843460,-500.0,0.00019574,2]
[367271003,1750723843470,-461.33,0.00019574,2]
[367271004,1750723843482,-460.0,0.00019574,2]
[367271005,1750723843491,-460.0,0.00019574,2]
[367271006,1750723843500,-460.0,0.00019574,2]
[367271008,1750723843509,-460.0,0.00019574,2]
[367271010,1750723843519,-460.0,0.00019574,2]
[367271012,1750723843528,-460.0,0.00019574,2]
[367271014,1750723843538,-460.0,0.00019574,2]
[367271016,1750723843547,-460.0,0.00019574,2]
[367271018,1750723843557,-463.14,0.00019574,2]
[367271020,1750723843567,-460.0,0.00019574,2]
[367271022,1750723843576,-460.0,0.00019574,2]
[367271024,1750723843586,-485.78,0.00019574,2]
[367271026,1750723843596,-460.0,0.00019574,2]
[367271028,1750723843605,-460.0,0.00019574,2]
[367271030,1750723843615,-460.0,0.00019574,2]
[367271033,1750723843625,-184.42,0.00019574,2]
[367271035,1750723843634,-460.0,0.00019574,2]
[367271037,1750723843643,-460.0,0.00019574,2]
[367271039,1750723843652,-460.0,0.00019574,2]
[367271041,1750723843661,-460.0,0.00019574,2]
[367271043,1750723843671,-460.0,0.00019574,2]
[367271045,1750723843681,-460.0,0.00019574,2]
[367271047,1750723843691,-793.17,0.00019574,2]
[367271049,1750723843700,-460.0,0.00019574,2]
[367271051,1750723843709,-460.0,0.00019574,2]
[367271053,1750723843718,-460.0,0.00019574,2]
[367271055,1750723843728,-460.0,0.00019574,2]
[367271057,1750723843738,-460.0,0.00019574,2]
[367271059,1750723843747,-460.0,0.00019575,2]
[367271061,1750723843757,-460.0,0.00019575,2]
[367271063,1750723843766,-460.0,0.00019575,2]
[367271065,1750723843775,-460.0,0.00019575,2]
[367271067,1750723843784,-460.0,0.00019575,2]
[367271069,1750723843794,-460.0,0.00019575,2]
[367271071,1750723843803,-460.0,0.00019575,2]
[367271073,1750723843813,-439.5557721,0.00019643,2]
[367271075,1750723843822,-1216.30955622,0.00019748,2]
[367271077,1750723843832,-158.81,0.00019843,2]
[367271079,1750723843841,-1738.13,0.00019843,2]
[367271081,1750723843850,-460.0,0.00019843,2]
[367271083,1750723843859,-460.0,0.00019843,2]
[367271085,1750723843869,-460.0,0.00019843,2]
[367271087,1750723843879,-460.0,0.00019844,2]
[367271089,1750723843888,-460.0,0.00019844,2]
[367271091,1750723843898,-460.0,0.00019844,2]
[367271093,1750723843907,-460.0,0.00019844,2]
[367271095,1750723843916,-1947.57,0.00019844,2]
[367271097,1750723843926,-2262.43,0.00019844,2]
[367271099,1750723843935,-506.05,0.00019844,2]
[367271101,1750723843945,-1275.82,0.00019844,2]
[367271103,1750723843955,-460.0,0.00019844,2]
[367271105,1750723843965,-1757.27,0.00019844,2]
[367271107,1750723843975,-1401.59,0.00019844,2]
[367271109,1750723843984,-460.0,0.00019844,2]
[367271111,1750723843994,-755.91,0.00019844,2]
[367271113,1750723844004,-504.92,0.00019844,2]
[367271115,1750723844015,-748.41,0.00019844,2]
[367271117,1750723844023,-2742.61,0.00019844,2]
[367271119,1750723844033,-580.87,0.00019844,2]
[367271121,1750723844042,-460.0,0.00019844,2]
[367271123,1750723844051,-460.0,0.00019845,2]
[367271125,1750723844060,-460.0,0.00019845,2]
[367271127,1750723844070,-460.0,0.00019845,2]
[367271129,1750723844079,-460.0,0.00019845,2]
[367271131,1750723844088,-460.0,0.00019845,2]
[367271133,1750723844098,-320.98,0.00019845,2]
[367271135,1750723844108,-460.0,0.00019845,2]
[367271137,1750723844118,-460.0,0.00019845,2]
[367271139,1750723844129,-521.47,0.00019845,2]
[367271141,1750723844139,-460.0,0.00019845,2]
[367271143,1750723844149,-460.0,0.00019845,2]
[367271145,1750723844158,-460.0,0.00019845,2]
[367271147,1750723844168,-546.86903497,0.00019845,2]
[367271149,1750723844178,-460.0,0.00019845,2]
[367271151,1750723844187,-495.61,0.00019845,2]
[367271153,1750723844197,-460.0,0.00019845,2]
[367271155,1750723844206,-460.0,0.00019845,2]
[367271157,1750723844215,-460.0,0.00019845,2]
[367271159,1750723844224,-460.0,0.00019845,2]
[367271161,1750723844233,-770.93,0.00019845,2]
[367271163,1750723844242,-532.98,0.00019845,2]
[367271165,1750723844251,-460.0,0.00019845,2]
[367271167,1750723844261,-545.41,0.00019845,2]
[367271169,1750723844270,-460.0,0.00019845,2]
[367271171,1750723844279,-460.0,0.00019845,2]
[367271173,1750723844288,-460.0,0.00019845,2]
[367271175,1750723844298,-460.0,0.00019845,2]
[367271177,1750723844308,-460.0,0.00019845,2]
[367271179,1750723844317,-460.0,0.00019845,2]
[367271181,1750723844327,-460.0,0.00019845,2]
[367271183,1750723844336,-460.0,0.00019845,2]
[367271185,1750723844345,-487.28,0.00019845,2]
[367271187,1750723844354,-460.0,0.00019845,2]
[367271189,1750723844363,-460.0,0.00019845,2]
[367271191,1750723844373,-460.0,0.00019845,2]
[367271193,1750723844382,-460.0,0.00019845,2]
[367271195,1750723844391,-540.67,0.00019845,2]
[367271197,1750723844401,-460.0,0.00019845,2]
[367271199,1750723844416,-460.0,0.00019845,2]
[367271201,1750723844425,-460.0,0.00019845,2]
[367271203,1750723844435,-460.0,0.00019845,2]
[367271205,1750723844444,-460.0,0.00019845,2]
[367271207,1750723844454,-585.67973166,0.00019845,2]
[367271209,1750723844463,-460.0,0.00019845,2]
[367271211,1750723844472,-545.2,0.00019845,2]
[367271213,1750723844483,-460.0,0.00019845,2]
[367271215,1750723844492,-460.0,0.00019845,2]
[367271217,1750723844502,-460.0,0.00019845,2]
[367271219,1750723844512,-460.0,0.00019845,2]
[367271221,1750723844521,-460.0,0.00019845,2]
[367271223,1750723844530,-715.93,0.00019845,2]
[367271225,1750723844539,-695.58,0.00019845,2]
[367271227,1750723844549,-460.0,0.00019845,2]
[367271229,1750723844559,-469.21869622,0.00019845,2]
[367271231,1750723844570,-330.49,0.00019846,2]
[367271233,1750723844579,-460.0,0.00019846,2]
[367271235,1750723844588,-460.0,0.00019846,2]
[367271237,1750723844598,-561.93,0.00019846,2]
[367271239,1750723844607,-725.17,0.00019846,2]
[367271241,1750723844616,-460.0,0.00019846,2]
[367271243,1750723844626,-718.39,0.00019846,2]
[367271245,1750723844635,-681.74,0.00019846,2]
[367271247,1750723844645,-460.0,0.00019847,2]
[367271249,1750723844654,-460.0,0.00019847,2]
[367271251,1750723844664,-2243.65,0.00019847,2]
[367271253,1750723844673,-652.11,0.00019847,2]
[367271255,1750723844682,-460.0,0.00019847,2]
[367271257,1750723844691,-460.0,0.00019847,2]
[367271259,1750723844700,-2118.0,0.00019847,2]
[367271261,1750723844709,-460.0,0.00019847,2]
[367271263,1750723844718,-460.0,0.00019847,2]
[367271265,1750723844728,-1750.26,0.00019847,2]
[367271267,1750723844737,-1226.69,0.00019847,2]
[367271269,1750723844746,-5614.3,0.00019847,2]
[367271271,1750723844756,-706.42,0.00019847,2]
[367271273,1750723844765,-3235.04,0.00019847,2]
[367271275,1750723844775,-518.57,0.00019847,2]
[367271277,1750723844784,-971.93,0.00019847,2]
[367271279,1750723844793,-460.0,0.00019847,2]
[367271281,1750723844802,-2158.52,0.00019847,2]
[367271282,1750723844812,-460.0,0.00019847,2]
[367271285,1750723844822,-460.0,0.00019848,2]
[367271287,1750723844831,-460.0,0.00019848,2]
[367271289,1750723844841,-473.71,0.00019848,2]
[367271290,1750723844850,-460.0,0.00019848,2]
[367271293,1750723844860,-460.0,0.00019848,2]
[367271295,1750723844869,-460.0,0.00019848,2]
[367271296,1750723844879,-460.0,0.00019848,2]
[367271298,1750723844888,-460.0,0.00019848,2]
[367271300,1750723844898,-460.0,0.00019848,2]
[367271302,1750723844907,-460.0,0.00019848,2]
[367271304,1750723844917,-227.39,0.00019848,2]
[367271306,1750723844926,-461.33,0.00019848,2]
[367271308,1750723844935,-460.0,0.00019848,2]
[367271310,1750723844944,-460.0,0.00019848,2]
[367271312,1750723844953,-594.5,0.00019848,2]
[367271314,1750723844963,-460.0,0.00019848,2]
[367271316,1750723844972,-460.0,0.00019848,2]
[367271318,1750723844981,-460.0,0.00019848,2]
[367271320,1750723844990,-460.0,0.00019848,2]
[367271322,1750723844999,-460.0,0.00019848,2]
[367271324,1750723845009,-463.14,0.00019848,2]
[367271326,1750723845018,-460.0,0.00019848,2]
[367271328,1750723845027,-460.0,0.00019848,2]
[367271330,1750723845036,-485.78,0.00019848,2]
[367271332,1750723845046,-460.0,0.00019848,2]
[367271334,1750723845055,-460.0,0.00019848,2]
[367271336,1750723845065,-460.0,0.00019848,2]
[367271338,1750723845074,-460.0,0.00019848,2]
[367271340,1750723845083,-460.0,0.00019848,2]
[367271342,1750723845092,-460.0,0.00019848,2]
[367271344,1750723845102,-460.0,0.00019848,2]
[367271346,1750723845112,-460.0,0.00019848,2]
[367271348,1750723845122,-460.0,0.00019848,2]
[367271350,1750723845131,-793.17,0.00019848,2]
[367271352,1750723845140,-460.0,0.00019848,2]
[367271354,1750723845149,-460.0,0.00019848,2]
[367271356,1750723845158,-460.0,0.00019848,2]
[367271358,1750723845168,-460.0,0.00019848,2]
[367271360,1750723845177,-460.0,0.00019848,2]
[367271362,1750723845186,-460.0,0.00019849,2]
[367271364,1750723845195,-460.0,0.00019849,2]
[367271366,1750723845205,-460.0,0.00019849,2]
[367271368,1750723845215,-460.0,0.00019849,2]
[367271370,1750723845224,-460.0,0.00019849,2]
[367271372,1750723845233,-460.0,0.00019849,2]
[367271374,1750723845242,-431.3045092,0.00019849,2]
[367271376,1750723845251,-500.0,0.0001986,2]
[367271378,1750723845260,-500.0,0.00019902,2]
[367271380,1750723845270,-500.0,0.00019902,2]
[367271382,1750723845279,-217.04,0.00019919,2]
[367271384,1750723845289,-500.0,0.0002,2]
[367271386,1750723845298,-500.0,0.00020002,2]
[367271388,1750723845307,-500.0,0.00020015,2]
[367271390,1750723845316,-500.0,0.00020019,2]
[367271392,1750723845325,-500.0,0.00020019,2]
[367271394,1750723845334,-153.0,0.00020062,2]
[367271396,1750723845343,-500.0,0.00020064,2]
[367271398,1750723845352,-1738.13,0.00020117,2]
[367271400,1750723845361,-460.0,0.00020117,2]
[367271402,1750723845370,-460.0,0.00020117,2]
[367271404,1750723845380,-460.0,0.00020117,2]
[367271406,1750723845389,-460.0,0.00020118,2]
[367271408,1750723845398,-460.0,0.00020118,2]
[367271410,1750723845410,-460.0,0.00020118,2]
[367271412,1750723845419,-460.0,0.00020118,2]
[367271414,1750723845429,-1947.57,0.00020118,2]
[367271416,1750723845438,-2262.43,0.00020118,2]
[367271418,1750723845448,-506.05,0.00020118,2]
[367271420,1750723845457,-1275.82,0.00020118,2]
[367271422,1750723845467,-460.0,0.00020118,2]
[367271424,1750723845476,-1757.27,0.00020118,2]
[367271426,1750723845487,-1401.59,0.00020118,2]
[367271428,1750723845498,-460.0,0.00020118,2]
[367271430,1750723845507,-755.91,0.00020118,2]
[367271432,1750723845517,-504.92,0.00020118,2]
[367271434,1750723845526,-748.41,0.00020118,2]
[367271436,1750723845536,-2742.61,0.00020118,2]
[367271438,1750723845545,-580.87,0.00020118,2]
[367271440,1750723845554,-460.0,0.00020118,2]
[367271442,1750723845564,-460.0,0.00020119,2]
[367271444,1750723845574,-493.44426123,0.00020119,2]
[367271446,1750723845583,-460.0,0.00020119,2]
[367271448,1750723845593,-460.0,0.00020119,2]
[367271450,1750723845602,-286.92,0.00020119,2]
[367271452,1750723845611,-460.0,0.00020119,2]
[367271454,1750723845621,-372.35,0.00020119,2]
[367271456,1750723845632,-521.47,0.00020119,2]
[367271458,1750723845641,-460.0,0.00020119,2]